bitfinex/quotes_BTCUSD_20220218
["timestamp","ask_amount","ask_price","bid_price","bid_amount"]
[1645203100537,0.32358963,40204.0,40200.0,0.08]
[1645203101383,0.25318412,40205.0,40200.0,0.08]
[1645203102187,0.332153,40204.0,40200.0,0.08]
[1645203102383,0.25318412,40205.0,40200.0,0.08]
[1645203102581,0.332153,40204.0,40191.0,0.43120735]
[1645203102787,1.12434317,40214.0,40196.0,1.55]
[1645203102990,8.02651959,40250.0,40211.0,0.2]
[1645203102991,0.5,40227.0,40211.0,0.2]
[1645203103186,0.0621989,40227.0,40217.0,0.1]
[1645203103392,0.01,40239.0,40218.0,0.77458517]
[1645203103584,0.01,40239.0,40219.0,0.3458]
[1645203103784,0.01,40239.0,40220.0,0.332215]
[1645203103785,0.24778788,40228.0,40220.0,0.332215]
[1645203103985,0.10830329,40233.0,40226.0,0.332215]
[1645203104185,0.01,40239.0,40226.0,0.332215]
[1645203104440,0.332215,40238.0,40227.0,0.0093]
[1645203104637,0.332215,40238.0,40221.0,0.0458]
[1645203104638,0.332215,40235.0,40221.0,0.0458]
[1645203105034,0.332215,40233.0,40221.0,0.0458]
[1645203105234,0.4613969,40233.0,40221.0,0.0458]
[1645203105633,0.4613969,40233.0,40215.0,0.0095]
[1645203105634,0.23800252,40223.0,40215.0,0.0095]
[1645203106037,0.23800252,40223.0,40204.0,0.224412]
[1645203106038,0.28800252,40223.0,40204.0,0.124412]
[1645203106237,0.28800252,40223.0,40206.0,0.0458]
[1645203106238,0.332215,40221.0,40206.0,0.0458]
[1645203106435,0.382215,40221.0,40205.0,0.0093]
[1645203106635,0.06222265,40219.0,40205.0,0.0093]
[1645203106834,0.11135388,40209.0,40198.0,0.062227]
[1645203107037,0.11135388,40209.0,40199.0,0.5094]
[1645203107334,0.11135388,40209.0,40199.0,0.0094]
[1645203107535,0.11135388,40209.0,40200.0,0.332215]
[1645203107938,0.31571614,40206.0,40200.0,0.332215]
[1645203108693,0.11135388,40209.0,40200.0,0.1]
[1645203108890,0.11135388,40209.0,40200.0,0.332215]
[1645203109092,0.11135388,40209.0,40199.0,0.0094]
[1645203109592,0.34855701,40212.0,40199.0,0.0094]
[1645203109593,0.30828973,40201.0,40199.0,0.0094]
[1645203109794,0.12533813,40202.0,40193.0,0.4405415]
[1645203109992,0.3,40208.0,40194.0,0.332215]
[1645203110197,0.1673,40211.0,40195.0,0.01]
[1645203110791,0.26375169,40202.0,40195.0,0.01]
[1645203110994,0.11588002,40199.0,40195.0,0.01]
[1645203111592,0.11588002,40199.0,40190.0,0.332215]
[1645203112034,0.11588002,40199.0,40194.0,0.26902502]
[1645203112232,0.26375169,40202.0,40191.0,0.0093]
[1645203112436,0.07,40198.0,40192.0,0.332215]
[1645203112633,0.26375169,40202.0,40191.0,0.0093]
[1645203113237,0.30530178,40195.0,40191.0,0.0093]
[1645203113532,0.30530178,40195.0,40191.0,0.332215]
[1645203113533,0.1107867,40192.0,40191.0,0.332215]
[1645203113732,0.1107867,40192.0,40189.0,0.332215]
[1645203113932,0.1107867,40192.0,40189.0,0.432215]
[1645203114134,0.11669713,40194.0,40192.0,0.22157339]
[1645203114733,0.5561,40209.0,40192.0,0.22157339]
[1645203114933,0.5561,40209.0,40193.0,0.0095]
[1645203115133,0.332215,40207.0,40193.0,0.0095]
[1645203115334,0.3,40206.0,40193.0,0.0095]
[1645203115533,0.25763086,40197.0,40193.0,0.0095]
[1645203115786,0.373529,40197.0,40193.0,0.0045]
[1645203115983,0.11589814,40197.0,40193.0,0.0045]
[1645203116385,0.11589814,40197.0,40192.0,0.22157339]
[1645203117085,0.30218255,40196.0,40192.0,0.22157339]
[1645203118690,0.5561,40209.0,40193.0,0.3]
[1645203118890,0.5801,40210.0,40194.0,0.341615]
[1645203119089,0.5801,40210.0,40196.0,0.332215]
[1645203119455,0.1646,40219.0,40198.0,0.332215]
[1645203119650,0.11385743,40209.0,40204.0,0.34778699]
[1645203119849,0.11385743,40209.0,40205.0,0.387415]
[1645203120051,0.00136259,40208.0,40206.0,0.0458]
[1645203121751,0.332215,40207.0,40206.0,0.0458]
[1645203121955,0.332215,40207.0,40183.0,0.824456]
[1645203121956,0.332215,40204.0,40194.0,0.3]
[1645203122253,0.0095,40203.0,40187.0,0.00023511]
[1645203122451,0.0095,40203.0,40182.0,0.30023511]
[1645203122652,0.0095,40203.0,40183.0,0.00023511]
[1645203122852,0.26108341,40195.0,40187.0,0.28867614]
[1645203123052,0.12745491,40193.0,40183.0,0.00023511]
[1645203123288,0.0095,40203.0,40183.0,0.00023511]
[1645203124088,0.2283788,40202.0,40183.0,0.00023511]
[1645203124289,0.27173734,40200.0,40183.0,0.00023511]
[1645203124488,0.11145655,40195.0,40183.0,0.00023511]
[1645203124687,0.11145655,40195.0,40193.0,0.332215]
[1645203125690,0.7308,40204.0,40194.0,0.632215]
[1645203125891,0.5584,40204.0,40194.0,0.732215]
[1645203126394,0.5499,40218.0,40197.0,0.1]
[1645203126590,0.32279387,40214.0,40206.0,0.2787426]
[1645203126791,1.5472,40224.0,40206.0,0.6567576]
[1645203127044,1.5472,40224.0,40206.0,0.7567576]
[1645203127242,1.5472,40224.0,40206.0,0.8567576]
[1645203127642,0.25178535,40222.0,40206.0,0.8567576]
[1645203127843,0.25178535,40222.0,40206.0,1.1567576]
[1645203128042,5.203e-05,40207.0,40206.0,0.8567576]
[1645203128244,0.178,40227.0,40206.0,0.8567576]
[1645203128245,0.0098,40236.0,40207.0,1.95]
[1645203128445,0.7298,40236.0,40210.0,0.1]
[1645203128646,0.78980455,40236.0,40211.0,0.3458]
[1645203128844,0.78980455,40236.0,40211.0,0.4958]
[1645203129044,0.78980455,40236.0,40211.0,0.5458]
[1645203129243,0.78980455,40236.0,40211.0,0.1458]
[1645203129244,0.12082466,40221.0,40211.0,0.1458]
[1645203129446,0.12082466,40221.0,40212.0,0.332215]
[1645203129846,0.12082466,40221.0,40212.0,0.432215]
[1645203130047,0.28060772,40218.0,40212.0,0.332215]
[1645203130448,0.09882317,40213.0,40206.0,0.2787426]
[1645203130686,0.09882317,40213.0,40207.0,0.332215]
[1645203131687,0.09882317,40213.0,40205.0,0.27869247]
[1645203131688,0.23437245,40211.0,40205.0,0.27869247]
[1645203131888,0.23437245,40211.0,40206.0,0.332215]
[1645203132088,0.09882317,40213.0,40204.0,0.0092]
[1645203132687,0.09882317,40213.0,40205.0,0.332215]
[1645203132887,0.2811465,40210.0,40204.0,0.0092]
[1645203133089,0.2811465,40210.0,40205.0,0.332215]
[1645203133691,0.2811465,40210.0,40204.0,0.0092]
[1645203133994,0.2811465,40210.0,40199.0,0.332215]
[1645203134447,0.13331027,40201.0,40200.0,0.0095]
[1645203134642,0.13331027,40201.0,40200.0,0.332215]
[1645203134841,0.2811465,40210.0,40208.0,0.00594198]
[1645203138288,0.2811465,40210.0,40208.0,0.00386642]
[1645203138690,0.09594188,40213.0,40208.0,0.00386642]
[1645203139491,0.09594188,40213.0,40209.0,0.00296428]
[1645203140491,0.28355669,40212.0,40209.0,0.00296428]
[1645203141955,0.332215,40211.0,40208.0,0.00302095]
[1645203142250,0.391915,40211.0,40208.0,0.00302095]
[1645203142448,0.1597,40211.0,40208.0,0.00302095]
[1645203142648,0.2055,40211.0,40208.0,0.00302095]
[1645203143249,0.3,40210.0,40208.0,0.00302095]
[1645203144050,1.55,40209.0,40201.0,0.00292486]
[1645203144251,0.1,40206.0,40201.0,4.86e-06]
[1645203144454,0.062242,40204.0,40201.0,4.86e-06]
[1645203144651,0.1330418,40203.0,40196.0,0.00282874]
[1645203144851,0.062243,40202.0,40196.0,0.00282874]
[1645203145050,0.26164694,40201.0,40196.0,0.00282874]
[1645203145251,0.332215,40200.0,40196.0,0.00282874]
[1645203145451,0.26164694,40201.0,40196.0,0.00282874]
[1645203147593,0.332215,40200.0,40192.0,0.22157339]
[1645203147787,0.332215,40198.0,40192.0,0.22157339]
[1645203147989,0.32347991,40193.0,40192.0,0.22157339]
[1645203148188,0.332215,40200.0,40192.0,0.22157339]
[1645203148687,0.0958,40201.0,40192.0,0.19032439]
[1645203148688,0.09454097,40196.0,40192.0,0.19032439]
[1645203148887,0.332215,40195.0,40192.0,0.19032439]
[1645203149088,0.09454097,40196.0,40192.0,0.19032439]
[1645203149287,0.2923841,40195.0,40192.0,0.19032439]
[1645203149961,0.09454097,40196.0,40192.0,0.19032439]
[1645203150163,0.00169957,40201.0,40193.0,0.332215]
[1645203150365,0.00169957,40201.0,40194.0,0.0094]
[1645203150964,0.30694901,40201.0,40194.0,0.0094]
[1645203151165,0.40833592,40201.0,40194.0,0.0094]
[1645203154691,0.0027967,40195.0,40194.0,0.0094]
[1645203158739,0.0027967,40195.0,40194.0,0.341615]
[1645203159138,0.0027967,40195.0,40194.0,0.441615]
[1645203159440,0.0282,40215.0,40195.0,1.84147082]
[1645203159441,0.5351,40208.0,40195.0,1.84147082]
[1645203159636,0.5351,40208.0,40196.0,0.428015]
[1645203159841,0.5351,40208.0,40199.0,0.062215]
[1645203160036,0.5351,40208.0,40200.0,0.378015]
[1645203160239,0.5351,40208.0,40199.0,0.062215]
[1645203160441,0.6351,40208.0,40195.0,0.0083901]
[1645203160702,0.10940802,40198.0,40195.0,0.0083901]
[1645203161091,0.10940802,40198.0,40196.0,0.270311]
[1645203161391,0.10940802,40198.0,40196.0,0.062234]
[1645203162191,0.10940802,40198.0,40196.0,0.112234]
[1645203162398,0.10940802,40198.0,40196.0,0.05]
[1645203162891,0.10940802,40198.0,40196.0,0.270319]
[1645203163191,0.10940802,40198.0,40195.0,0.0083901]
[1645203163791,0.30414905,40202.0,40196.0,0.27032]
[1645203163991,0.30414905,40202.0,40195.0,0.0083901]
[1645203164549,0.2368,40205.0,40202.0,0.00273263]
[1645203164752,0.31238707,40205.0,40202.0,0.00273263]
[1645203165150,0.1868,40205.0,40202.0,0.00273263]
[1645203165554,0.5351,40208.0,40203.0,0.270268]
[1645203165755,0.0091,40214.0,40204.0,0.270252]
[1645203165958,0.578,40214.0,40205.0,0.3094]
[1645203166153,0.578,40214.0,40205.0,0.0094]
[1645203166351,0.578,40214.0,40206.0,0.270234]
[1645203166651,0.578,40214.0,40206.0,0.31719135]
[1645203166852,0.578,40214.0,40205.0,0.0094]
[1645203167053,0.578,40214.0,40205.0,0.0594]
[1645203167456,0.578,40214.0,40207.0,0.062212]
[1645203168053,0.30521273,40213.0,40207.0,0.062212]
[1645203168592,0.30521273,40213.0,40207.0,0.06065529]
[1645203168795,0.30521273,40213.0,40205.0,0.0094]
[1645203168993,0.24951641,40208.0,40205.0,0.0094]
[1645203169195,0.24951641,40208.0,40206.0,0.255238]
[1645203169396,0.24951641,40208.0,40202.0,0.00273263]
[1645203169593,0.12407953,40209.0,40205.0,0.255245]
[1645203169995,0.12407953,40209.0,40204.0,0.00575593]
[1645203170195,0.578,40214.0,40205.0,0.255244]
[1645203170395,0.578,40214.0,40204.0,0.00575593]
[1645203171292,0.09682624,40212.0,40204.0,0.00575593]
[1645203171493,0.25875949,40208.0,40204.0,0.00575593]
[1645203172339,0.25875949,40208.0,40205.0,0.255245]
[1645203173138,0.25875949,40208.0,40204.0,0.00575593]
[1645203173337,0.25875949,40208.0,40205.0,0.255244]
[1645203173740,0.062226,40211.0,40204.0,0.00575593]
[1645203173940,0.09682624,40212.0,40204.0,0.00575593]
[1645203174640,0.09682624,40212.0,40207.0,0.00286465]
[1645203174839,0.26706212,40211.0,40207.0,0.00286465]
[1645203175045,1.55,40210.0,40200.0,0.05581873]
[1645203175239,1.55,40210.0,40201.0,0.255269]
[1645203175695,0.26706212,40211.0,40201.0,0.255269]
[1645203176091,0.26706212,40211.0,40203.0,0.062219]
[1645203176293,0.578,40214.0,40204.0,0.255251]
[1645203176492,0.578,40214.0,40206.0,0.255234]
[1645203177493,0.578,40214.0,40206.0,0.317446]
[1645203179092,0.11326452,40210.0,40206.0,0.317446]
[1645203179542,0.00175275,40210.0,40206.0,0.317446]
[1645203179743,0.00175275,40210.0,40207.0,0.25523]
[1645203183391,0.04571033,40213.0,40202.0,0.4]
[1645203183591,0.04571033,40213.0,40203.0,0.255253]
[1645203184393,0.00286658,40210.0,40199.0,0.3]
[1645203184593,0.00286658,40210.0,40202.0,0.05]
[1645203184594,0.0651002,40209.0,40202.0,0.05]
[1645203184792,0.0651002,40209.0,40203.0,0.255259]
[1645203185693,0.0651002,40209.0,40203.0,0.305259]
[1645203186093,0.0651002,40209.0,40203.0,0.255259]
[1645203186299,0.0651002,40209.0,40196.0,0.0096]
[1645203186300,0.332207,40207.0,40196.0,0.0096]
[1645203186494,0.0028792,40209.0,40196.0,0.0096]
[1645203186495,0.062234,40205.0,40196.0,0.0096]
[1645203186695,0.342107,40204.0,40196.0,0.0096]
[1645203186946,0.06223873,40203.0,40196.0,0.0096]
[1645203187144,0.33658661,40198.0,40196.0,0.0096]
[1645203187345,0.33658661,40198.0,40192.0,0.19032439]
[1645203187649,0.332207,40197.0,40192.0,0.19032439]
[1645203188243,0.33658661,40198.0,40192.0,0.19032439]
[1645203188447,0.332207,40197.0,40192.0,0.19032439]
[1645203188743,0.33658661,40198.0,40192.0,0.19032439]
[1645203189545,0.332207,40197.0,40192.0,0.19032439]
[1645203189745,0.332207,40197.0,40192.0,0.1905595]
[1645203190705,0.33658661,40198.0,40193.0,0.00023511]
[1645203190897,0.332207,40197.0,40193.0,0.00023511]
[1645203191898,0.332207,40196.0,40193.0,0.00023511]
[1645203192101,0.05,40197.0,40193.0,0.00023511]
[1645203192297,0.44883244,40198.0,40193.0,0.00023511]
[1645203192898,0.332207,40197.0,40193.0,0.00023511]
[1645203193300,0.44883244,40198.0,40193.0,0.00023511]
[1645203193497,0.06224583,40198.0,40193.0,0.00023511]
[1645203193701,0.2093,40204.0,40196.0,0.255318]
[1645203193702,0.10504091,40203.0,40196.0,0.255318]
[1645203193898,0.1635,40204.0,40193.0,0.30023511]
[1645203194297,0.1635,40204.0,40196.0,0.305313]
[1645203194545,0.46678873,40204.0,40196.0,0.543747]
[1645203194844,0.46678873,40204.0,40196.0,0.05]
[1645203194845,0.10398357,40203.0,40196.0,0.05]
[1645203195044,0.10398357,40203.0,40196.0,0.0095185]
[1645203195246,0.10398357,40203.0,40196.0,0.0595185]
[1645203195645,0.10398357,40203.0,40196.0,0.0095185]
[1645203195852,0.15398357,40203.0,40196.0,0.0095185]
[1645203196345,0.16308357,40203.0,40196.0,0.0095185]
[1645203197849,0.0091,40203.0,40196.0,0.0095185]
[1645203198050,0.386,40210.0,40197.0,0.255306]
[1645203198307,0.386,40210.0,40199.0,0.255287]
[1645203198699,0.386,40210.0,40199.0,0.305287]
[1645203198896,0.2921198,40212.0,40203.0,0.062219]
[1645203199097,0.2921198,40212.0,40203.0,0.371519]
[1645203199698,0.2921198,40212.0,40203.0,0.071519]
[1645203199898,0.2921198,40212.0,40203.0,0.0093]
[1645203200299,0.2921198,40212.0,40204.0,0.062218]
[1645203200499,0.27793405,40208.0,40203.0,0.0093]
[1645203200698,0.27793405,40208.0,40204.0,0.25525]
[1645203200900,0.062223,40211.0,40203.0,0.0593]
[1645203201203,0.2921198,40212.0,40203.0,0.0093]
[1645203202043,0.29209402,40208.0,40203.0,0.0093]
[1645203203044,0.29209402,40208.0,40203.0,0.07152]
[1645203203243,0.2921198,40212.0,40203.0,0.07152]
[1645203203444,0.3421198,40212.0,40203.0,0.12152]
[1645203203847,0.3421198,40212.0,40203.0,0.12061324]
[1645203204043,0.3421198,40212.0,40203.0,0.05760994]
[1645203204242,0.3421198,40212.0,40203.0,0.0093]
[1645203204643,0.27413734,40206.0,40203.0,0.0093]
[1645203204843,0.27413734,40206.0,40199.0,0.00317636]
[1645203204844,0.27413734,40206.0,40205.0,0.00625098]
[1645203205446,0.65634434,40206.0,40205.0,0.00625098]
[1645203205700,0.32413734,40206.0,40205.0,0.00625098]
[1645203206697,0.65634434,40206.0,40205.0,0.00625098]
[1645203206893,0.65634434,40206.0,40195.0,0.0083901]
[1645203206894,1.55,40205.0,40195.0,0.0083901]
[1645203207093,1.6,40205.0,40195.0,0.0083901]
[1645203207693,1.6,40205.0,40196.0,0.124453]
[1645203207694,0.0097,40204.0,40196.0,0.124453]
[1645203207893,0.10444862,40202.0,40197.0,0.05]
[1645203208998,0.0097,40204.0,40199.0,0.062227]
[1645203209641,0.5689,40214.0,40199.0,0.062227]
[1645203210043,0.5689,40214.0,40205.0,0.062212]
[1645203210244,0.0092,40213.0,40206.0,0.255236]
[1645203210443,0.00196124,40207.0,40206.0,0.255236]
[1645203215492,0.00613481,40207.0,40206.0,0.255236]
[1645203215993,0.00613481,40207.0,40204.0,0.0097]
[1645203216194,0.00613481,40207.0,40203.0,0.186635]
[1645203216592,0.35240611,40205.0,40203.0,0.186635]
[1645203217040,0.34447554,40205.0,40203.0,0.186635]
[1645203217240,0.34447554,40205.0,40203.0,0.181635]
[1645203218443,0.13359806,40204.0,40203.0,0.181635]
[1645203218642,0.13359806,40204.0,40203.0,0.119424]
[1645203220795,0.35,40212.0,40206.0,0.062221]
[1645203220995,0.05,40212.0,40207.0,0.062219]
[1645203221394,0.0092,40213.0,40207.0,0.062219]
[1645203221395,0.0592,40213.0,40207.0,0.062219]
[1645203221594,0.3413648,40209.0,40207.0,0.062219]
[1645203221795,0.3913648,40209.0,40207.0,0.062219]
[1645203222195,0.05,40209.0,40207.0,0.062219]
[1645203222397,0.14627881,40211.0,40207.0,0.062219]
[1645203222999,0.05,40211.0,40207.0,0.062219]
[1645203223198,0.0092,40213.0,40207.0,0.062219]
[1645203223398,0.00210892,40213.0,40207.0,0.062219]
[1645203225943,0.6189,40214.0,40207.0,0.062219]
[1645203226342,0.34235924,40209.0,40207.0,0.062219]
[1645203227643,0.6189,40214.0,40207.0,0.062219]
[1645203228297,0.5689,40214.0,40207.0,0.062219]
[1645203228494,0.5689,40214.0,40208.0,0.062215]
[1645203228698,0.5689,40214.0,40213.0,0.34570696]
[1645203229000,0.03742,40215.0,40214.0,0.255176]
[1645203233843,0.03742,40215.0,40214.0,0.31736]
[1645203234341,0.03742,40215.0,40214.0,0.41736]
[1645203234745,0.03742,40215.0,40214.0,0.36321241]
[1645203234942,0.02802,40215.0,40214.0,0.36321241]
[1645203235341,0.02802,40215.0,40214.0,0.26321241]
[1645203235707,0.02802,40215.0,40214.0,0.00803641]
[1645203235708,0.02302,40215.0,40214.0,0.00803641]
[1645203236096,0.02302,40215.0,40214.0,0.26321141]
[1645203236897,0.02302,40215.0,40214.0,0.31321141]
[1645203237098,0.02302,40215.0,40214.0,0.05803641]
[1645203237697,0.02302,40215.0,40214.0,0.31321141]
[1645203238898,0.02302,40215.0,40214.0,0.41321141]
[1645203240344,0.02489781,40215.0,40214.0,0.405175]
[1645203240545,0.02489781,40215.0,40214.0,0.305175]
[1645203240748,0.02489781,40215.0,40213.0,0.134103]
[1645203240749,0.02489781,40215.0,40213.0,0.062204]
[1645203240947,0.02489781,40215.0,40209.0,0.255208]
[1645203241246,0.02489781,40215.0,40210.0,0.255205]
[1645203241647,0.02489781,40215.0,40210.0,0.379608]
[1645203241846,0.02489781,40215.0,40210.0,0.554007]
[1645203242047,0.02489781,40215.0,40210.0,0.491805]
[1645203242847,0.02489781,40215.0,40211.0,0.124403]
[1645203243046,0.02489781,40215.0,40212.0,0.25519]
[1645203243519,0.02489781,40215.0,40213.0,0.062201]
[1645203243722,0.02489781,40215.0,40214.0,0.255176]
[1645203244121,0.02489781,40215.0,40210.0,0.05]
[1645203244322,0.02489781,40215.0,40211.0,0.255195]
[1645203244922,0.02489781,40215.0,40210.0,0.05]
[1645203245125,0.02489781,40215.0,40211.0,0.255197]
[1645203245322,0.02489781,40215.0,40210.0,0.05]
[1645203245323,0.02489781,40215.0,40210.0,0.11221]
[1645203245521,0.02597897,40215.0,40210.0,0.11221]
[1645203245721,0.27124504,40212.0,40211.0,0.255197]
[1645203245921,0.02597897,40215.0,40211.0,0.255197]
[1645203246121,0.02597897,40215.0,40210.0,0.11221]
[1645203246946,0.02597897,40215.0,40210.0,0.05]
[1645203247750,0.27201023,40214.0,40210.0,0.05]
[1645203248147,0.32201023,40214.0,40211.0,0.255197]
[1645203248748,0.32201023,40214.0,40210.0,0.05]
[1645203249148,0.32201023,40214.0,40211.0,0.255198]
[1645203249349,0.32201023,40214.0,40210.0,0.05]
[1645203249549,0.32201023,40214.0,40210.0,0.112211]
[1645203249550,0.05,40214.0,40210.0,0.112211]
[1645203249750,0.07597897,40215.0,40212.0,0.255191]
[1645203249950,0.14597878,40215.0,40210.0,0.112211]
[1645203250151,0.19597878,40215.0,40210.0,0.112211]
[1645203250354,0.19301981,40215.0,40213.0,0.00077103]
[1645203250552,0.02302,40215.0,40213.0,0.00077103]
[1645203250807,0.02302,40215.0,40213.0,0.062205]
[1645203251008,0.02302,40215.0,40214.0,0.255176]
[1645203252013,0.02302,40215.0,40213.0,0.062205]
[1645203252810,0.12302,40215.0,40213.0,0.062205]
[1645203253409,0.12302,40215.0,40214.0,0.255175]
[1645203253708,0.12302,40215.0,40213.0,0.062205]
[1645203254941,0.12302,40215.0,40214.0,0.00293678]
[1645203255141,0.02302,40215.0,40214.0,0.00585558]
[1645203255342,0.02302,40215.0,40214.0,0.26103158]
[1645203255546,0.02302,40215.0,40214.0,0.31103158]
[1645203257246,0.0022,40241.0,40215.0,1.55]
[1645203257448,0.0022,40241.0,40226.0,0.1]
[1645203257746,0.28797419,40236.0,40228.0,0.3076979]
[1645203257943,0.0022,40241.0,40229.0,0.255054]
[1645203258213,0.0022,40241.0,40230.0,0.0094]
[1645203258408,0.0022,40241.0,40232.0,0.062172]
[1645203258702,0.0022,40241.0,40233.0,0.305024]
[1645203258902,0.0022,40241.0,40233.0,0.405024]
[1645203259101,0.0022,40241.0,40235.0,0.24923378]
[1645203259304,0.0022,40241.0,40236.0,0.255001]
[1645203259502,0.0022,40241.0,40236.0,0.305001]
[1645203260003,0.10261739,40240.0,40236.0,0.112159]
[1645203260203,0.30014481,40240.0,40236.0,0.05]
[1645203260404,0.00493484,40239.0,40236.0,0.255001]
[1645203260708,0.32030916,40239.0,40231.0,0.60601376]
[1645203260904,0.32023686,40239.0,40231.0,0.60601376]
[1645203261103,0.32023686,40239.0,40234.0,0.062175]
[1645203261304,0.00486254,40239.0,40235.0,0.255009]
[1645203261703,0.00486254,40239.0,40235.0,0.605009]
[1645203262343,0.00486254,40239.0,40237.0,0.254994]
[1645203262745,0.00486254,40239.0,40238.0,0.554986]
[1645203263645,0.00486254,40239.0,40238.0,0.654986]
[1645203263844,0.00486254,40239.0,40238.0,0.759836]
[1645203264847,0.00486254,40239.0,40238.0,0.76275632]
[1645203265449,0.00486254,40239.0,40238.0,0.36275632]
[1645203267698,0.00486254,40239.0,40238.0,0.70572854]
[1645203267900,0.00486254,40239.0,40238.0,0.80572854]
[1645203268603,0.00486254,40239.0,40238.0,0.46275632]
[1645203270249,0.00486254,40239.0,40238.0,0.36275632]
[1645203270450,0.00486254,40239.0,40238.0,0.359836]
[1645203270451,0.00667033,40239.0,40238.0,0.359836]
[1645203270852,0.00667033,40239.0,40238.0,0.350736]
[1645203271260,0.00667033,40239.0,40238.0,0.09575]
[1645203271854,0.2769549,40239.0,40238.0,0.09575]
[1645203275097,0.3269549,40239.0,40238.0,0.09575]
[1645203275696,0.3269549,40239.0,40233.0,0.01]
[1645203275697,0.32807764,40239.0,40233.0,0.01]
[1645203275896,0.32807764,40239.0,40234.0,0.255013]
[1645203276097,0.32807764,40239.0,40234.0,0.317185]
[1645203276298,0.27807764,40239.0,40234.0,0.317185]
[1645203276505,0.27807764,40239.0,40234.0,0.312185]
[1645203276939,0.32807764,40239.0,40234.0,0.312185]
[1645203277240,0.32807764,40239.0,40235.0,0.062164]
[1645203277440,0.32807764,40239.0,40236.0,0.305001]
[1645203277642,0.32807764,40239.0,40234.0,0.231501]
[1645203277841,0.32807764,40239.0,40218.0,0.59680191]
[1645203277842,1.55,40237.0,40219.0,0.1]
[1645203278043,1.55,40237.0,40217.0,0.02779]
[1645203278044,0.1,40234.0,40217.0,0.02779]
[1645203278349,0.332169,40228.0,40219.0,0.5]
[1645203278543,0.332169,40228.0,40214.0,0.071803]
[1645203278744,0.332169,40222.0,40218.0,0.32094927]
[1645203278943,0.11598249,40222.0,40218.0,0.32094927]
[1645203279145,0.11598249,40222.0,40214.0,0.0096]
[1645203279342,0.11598249,40222.0,40204.0,0.03664503]
[1645203279343,0.0097,40221.0,40204.0,0.03664503]
[1645203279541,0.0097,40221.0,40206.0,0.5]
[1645203279742,0.0097,40221.0,40211.0,0.124401]
[1645203280045,0.0097,40221.0,40212.0,0.0094]
[1645203280794,0.0622052,40219.0,40212.0,0.0094]
[1645203281195,0.32319716,40216.0,40212.0,0.0094]
[1645203281392,0.37319716,40216.0,40212.0,0.0094]
[1645203282594,0.37319716,40216.0,40208.0,0.05]
[1645203282798,0.67319716,40216.0,40208.0,0.05]
[1645203283095,0.20508729,40214.0,40208.0,0.05]
[1645203283497,0.20508729,40214.0,40208.0,0.38806248]
[1645203283696,0.0622144,40214.0,40208.0,0.38806248]
[1645203284096,0.0622144,40214.0,40208.0,0.05]
[1645203284301,0.0622144,40214.0,40205.0,0.062214]
[1645203284542,0.0572144,40214.0,40206.0,0.062213]
[1645203284742,0.0572144,40214.0,40206.0,0.112213]
[1645203284942,0.0572144,40214.0,40206.0,0.05]
[1645203285144,0.0572144,40214.0,40206.0,0.28362156]
[1645203285543,0.0572144,40214.0,40206.0,0.33362156]
[1645203286144,0.25721101,40209.0,40203.0,0.124422]
[1645203286347,0.25721101,40209.0,40196.0,0.250889]
[1645203286348,0.632169,40208.0,40196.0,0.250889]
[1645203286549,0.06222964,40206.0,40196.0,0.002]
[1645203286854,0.11222964,40206.0,40196.0,0.002]
[1645203287246,0.05,40206.0,40198.0,0.29288343]
[1645203288049,0.05,40206.0,40198.0,0.34288343]
[1645203288799,0.06222779,40205.0,40198.0,0.34288343]
[1645203289900,0.133568,40208.0,40207.0,0.00607654]
[1645203289901,0.39185482,40208.0,40207.0,0.00607654]
[1645203290101,0.09185482,40208.0,40207.0,7.654e-05]
[1645203290303,0.3,40211.0,40207.0,7.654e-05]
[1645203290503,0.18667636,40219.0,40207.0,7.654e-05]
[1645203290504,0.1,40219.0,40207.0,7.654e-05]
[1645203291602,0.10201356,40212.0,40207.0,0.12449654]
[1645203291801,0.10201356,40212.0,40207.0,0.17449654]
[1645203292643,0.10201356,40212.0,40207.0,0.11228854]
[1645203292843,0.062212,40218.0,40207.0,0.11228854]
[1645203293046,0.0553,40221.0,40207.0,0.11228854]
[1645203293047,0.0095,40221.0,40207.0,0.11228854]
[1645203293843,0.29019353,40217.0,40213.0,0.31221204]
[1645203294042,0.29019353,40217.0,40213.0,0.36221204]
[1645203294242,0.12024826,40220.0,40213.0,0.36221204]
[1645203294442,0.17024826,40220.0,40213.0,0.36221204]
[1645203294945,0.12024826,40220.0,40213.0,0.31221204]
[1645203295144,0.0095,40221.0,40214.0,0.062201]
[1645203295445,0.32865942,40218.0,40214.0,0.062201]
[1645203295891,0.05615438,40222.0,40214.0,0.062201]
[1645203296092,0.82759987,40223.0,40214.0,0.072101]
[1645203296493,0.5016,40223.0,40214.0,0.072101]
[1645203296695,0.5016,40223.0,40214.0,0.372101]
[1645203296896,0.498,40229.0,40214.0,0.472101]
[1645203297097,0.21927786,40228.0,40214.0,0.472101]
[1645203297495,0.21927786,40228.0,40222.0,0.26987619]
[1645203297693,0.21927786,40228.0,40214.0,0.472101]
[1645203297993,0.21927786,40228.0,40220.0,0.062192]
[1645203298194,0.26927786,40228.0,40220.0,0.062192]
[1645203298495,0.26927786,40228.0,40218.0,0.112192]
[1645203298693,0.26927786,40228.0,40220.0,0.25151131]
[1645203299096,0.26927786,40228.0,40220.0,0.36370331]
[1645203299097,0.05,40228.0,40220.0,0.36370331]
[1645203299295,0.32620713,40229.0,40220.0,0.36370331]
[1645203299544,0.32620713,40229.0,40220.0,0.30151131]
[1645203299849,0.38840313,40229.0,40220.0,0.05]
[1645203300047,0.06219948,40227.0,40217.0,0.05]
[1645203300246,0.20594133,40225.0,40216.0,0.05]
[1645203300447,0.25594133,40225.0,40215.0,0.05]
[1645203300646,0.1087307,40221.0,40214.0,0.3599]
[1645203300846,0.1087307,40221.0,40218.0,0.34756318]
[1645203301047,0.1087307,40221.0,40218.0,0.39756318]
[1645203301248,0.1087307,40221.0,40214.0,0.3599]
[1645203301846,0.0025,40224.0,40215.0,0.062198]
[1645203302456,0.062198,40228.0,40215.0,0.062198]
[1645203302648,0.112198,40228.0,40215.0,0.062198]